[Event "LEM Sachsen-Anhalt Masters 2024"]
[Site "Merseburg"]
[Date "2024.02.09"]
[Round "4.7"]
[White "Schellmann, Frank"]
[Black "Herter, Arne"]
[Result "0-1"]
[ECO "C54"]
[WhiteElo "1923"]
[BlackElo "2028"]
[Annotator "NA"]
[PlyCount "60"]
[EventDate "2024.02.01"]
[EventType "swiss"]
[EventCountry "GER"]
[SourceTitle "playchess.com"]
[Source "ChessBase"]
[SourceQuality "1"]
[TimeControl "40/5400+30:1800+30"]

1. e4 {[%emt 1:31:00]} e5 {[%emt 1:31:00]} 2. Nf3 {[%emt 0:00:30]} Nc6 {[%emt 0:00:30]} 3. Bc4 {[%emt 0:00:30]} Bc5 {[%emt 0:00:30]} 4. O-O {[%emt 0:00:30]} Nf6 {[%emt 0:00:30]} 5. d3 {[%emt 0:00:30]} d6 {[%emt 0:00:30]} 6. c3 {[%emt 0:00:30]} a6 {[%emt 0:00:30]} 7. a4 {[%emt 0:00:30]} Ba7 {[%emt 0:00:30]} 8. Re1 {[%emt 0:00:30]} O-O {[%emt 0:00:30]} 9. h3 {[%emt 0:00:30]} h6 {[%emt 0:00:30]} 10. Nbd2 {[%emt 0:00:30]} Ne7 {[%emt 0:00:30]} 11. Nf1 {[%emt 0:00:30]} Ng6 {[%emt 0:00:30]} 12. Ng3 {[%emt 0:00:30]} c6 {[%emt 0:00:30]} 13. Bb3 {[%emt 0:00:30]} Be6 {[%emt 0:00:30]} 14. d4 {[%emt 0:00:30]} Qc7 $14 {[%emt 0:00:30]} 15. Bc2 {[%emt 0:00:30]} Rad8 {[%emt 0:00:30]} 16. Be3 {[%emt 0:00:30]} d5 {[%emt 0:00:30]} 17. Qb1 {[%emt 0:00:30]} dxe4 {[%emt 0:00:30]} 18. Nxe5 {[%emt 0:00:30]} Nxe5 {[%emt 0:00:30]} 19. dxe5 {[%emt 0:00:30]} Bxe3 {[%emt 0:00:30]} 20. Rxe3 {[%emt 0:00:30]} Qxe5 {[%emt 0:00:30]} 21. Nxe4 {[%emt 0:00:30]} Nd5 {[%emt 0:00:30]} 22. Re1 {[%emt 0:00:30]} Nf4 {[%emt 0:00:30]} 23. h4 {[%emt 0:00:30]} Qh5 {[%emt 0:00:30]} 24. Re3 {[%emt 0:00:30]} Ne2+ {[%emt 0:00:30]} 25. Kf1 {[%emt 0:00:30]} Qxh4 {[%emt 0:00:30]} 26. Kxe2 {[%emt 0:00:30]} Bc4+ {[%emt 0:00:30]} 27. Kf3 {[%emt 0:00:30]} f5 {[%emt 0:00:30]} 28. g3 {[%emt 0:00:30]} fxe4+ {[%emt 0:00:30]} 29. Kg2 Rxf2+ {[%emt 0:00:30]} 30. Kxf2 {[%emt 0:01:00]} Qh2+ {[%emt 0:00:30]} 0-1

[Event "LEM Sachsen-Anhalt Masters 2024"]
[Site "Merseburg"]
[Date "2024.02.10"]
[Round "5.1"]
[White "Groebel, Aaron"]
[Black "Malek, Daniel"]
[Result "0-1"]
[ECO "B10"]
[WhiteElo "2087"]
[BlackElo "2307"]
[Annotator "TA"]
[PlyCount "58"]
[EventDate "2024.02.01"]
[EventType "swiss"]
[EventCountry "GER"]
[SourceTitle "playchess.com"]
[Source "ChessBase"]
[SourceQuality "1"]
[TimeControl "40/5400+30:1800+30"]

{[%evp 9,57,-1,-4,-36,-16,-31,0,1,46,45,67,-11,2,-37,-19,-36,-25,-48,-52,-53,-38,-79,-78,-88,-73,-73,-75,-75,-68,-61,-43,-85,-59,-68,-63,-204,-123,-178,-138,-143,-112,-477,-481,-524,-504,-533,-526,-1608,-1160,-29999]} 1. e4 {[%emt 0:00:06]} c6 {[%emt 0:00:07]} 2. d3 {[%emt 0:00:12]} d5 {[%emt 0:00:06]} 3. Qe2 {[%emt 0:00:08]} dxe4 {[%emt 0:00:13]} 4. dxe4 {[%emt 0:00:11]} e5 {[%emt 0:00:07]} 5. Nf3 {[%emt 0:00:50]} Qc7 {[%emt 0:00:11]} 6. Be3 {[%emt 0:02:36]} Nf6 {[%emt 0:00:12][%cal Of8e7,Bg8f6,Bf6d7,Bd7c5,Bc5e6][%mdl 32]} 7. Nbd2 {[%emt 0:00:19]} Bg4 {[%emt 0:06:12][%cal Bc8g4,Bg4h5,Bh5g6][%mdl 32]} 8. h3 {[%emt 0:02:46] The position is equal.} Bh5 {[%emt 0:00:06]} 9. g4 {[%emt 0:04:36]} Bg6 {[%emt 0:00:07][%cal Ob8d7]} 10. Bg5 {[%emt 0:00:09]} ({White should try} 10. O-O-O $14) 10... Nfd7 {[%emt 0:06:12]} 11. Bg2 {[%emt 0:11:31]} Nc5 {[%emt 0:07:03]} 12. Nh4 {[%emt 0:05:35]} Nbd7 {[%emt 0:01:29]} 13. O-O {[%emt 0:03:55]} Ne6 {[%emt 0:03:11]} 14. Be3 {[%emt 0:01:01]} Bc5 {[%emt 0:03:59]} 15. Rad1 {[%emt 0:04:20]} O-O-O {[%emt 0:14:19]} 16. c3 {[%emt 0:15:28]} Kb8 {[%emt 0:01:35]} 17. b4 {[%emt 0:06:26] [#] Strongly threatening Nxg6.} Bxe3 {[%emt 0:00:08]} 18. fxe3 {[%emt 0:00:09]} f6 {[%emt 0:02:28]} 19. a4 {[%emt 0:05:09]} Bf7 {[%emt 0:02:18]} 20. Nf5 {[%emt 0:01:03]} h5 $36 {[%emt 0:00:44][%mdl 2048] Black fights for an advantage.} 21. Nc4 {[%emt 0:03:50]} hxg4 {[%emt 0:01:28]} 22. hxg4 {[%emt 0:00:07]} ({White should play} 22. Ncd6 $15 Nb6 (22... gxh3 23. Nxf7 Ng5 24. Nxh8 $16) 23. a5) 22... Nb6 {[%emt 0:02:12][%cal Oe6f4] ...Nf4! would now be deadly.} 23. Nb2 {[%emt 0:07:02]} (23. Rxd8+ $17 {keeps fighting.} Rxd8 24. Nb2) 23... g6 {[%emt 0:13:17]} 24. a5 {[%emt 0:05:56]} gxf5 {[%emt 0:01:29]} 25. exf5 $2 {[%emt 0:02:35][%mdl 8192]} (25. axb6 $17 Qxb6 (25... axb6 26. Rxd8+ Rxd8 27. exf5 $15) 26. Rxd8+ Qxd8 27. exf5) 25... Nd5 $19 {[%emt 0:02:00]} (25... Rxd1 26. Nxd1 Nd5 27. fxe6 Bxe6 28. Bxd5 cxd5 (28... Bxd5 29. e4 $11) 29. Rxf6 $11) 26. fxe6 {[%emt 0:06:12]} Bxe6 {[%emt 0:00:25]} 27. c4 {[%emt 0:00:01]} e4 {[%emt 0:11:46] Threatens to win with ...Qh2+.} (27... Nxb4 28. Rxf6 Bc8 29. Rxd8 Rxd8 (29... Qxd8 $2 30. g5 $19) 30. g5 $17) 28. Bxe4 {[%emt 0:03:08] [#]} Bxg4 $1 {[%emt 0:00:14][%mdl 512]} 29. Qxg4 {[%emt 0:01:49]} (29. Qg2 Bh3) 29... Qh2# {[%emt 0:01:25] Weighted Error Value: White=0.81/Black=0.49.  Loses game:     	White=1     	---        Mistake:       	White=3     	---        Inaccurate:     	White=5     	Black=3      OK:         	White=4     	Black=9      Best:        	White=1     	Black=2} 0-1

[Event "LEM Sachsen-Anhalt Masters 2024"]
[Site "Merseburg"]
[Date "2024.02.10"]
[Round "5.2"]
[White "Polzin, Gustav"]
[Black "Ahmed, Daniel"]
[Result "0-1"]
[ECO "B01"]
[WhiteElo "1895"]
[BlackElo "1994"]
[Annotator "NA RC"]
[PlyCount "64"]
[EventDate "2024.02.01"]
[EventType "swiss"]
[EventCountry "GER"]
[SourceTitle "playchess.com"]
[Source "ChessBase"]
[SourceQuality "1"]
[TimeControl "40/5400+30:1800+30"]

1. e4 {[%emt 0:00:06]} d5 {[%emt 0:00:22]} 2. exd5 {[%emt 0:00:12]} Qxd5 {[%emt 0:00:10]} 3. Nc3 {[%emt 0:00:11]} Qd8 {[%emt 0:00:13]} 4. d4 {[%emt 0:00:31]} Nf6 {[%emt 0:00:14]} 5. Bc4 {[%emt 0:00:19]} g6 {[%emt 0:01:22]} 6. Nf3 {[%emt 0:00:39]} Bg7 {[%emt 0:00:08]} 7. Be3 {[%emt 0:01:09]} O-O {[%emt 0:00:20]} 8. h3 {[%emt 0:00:42]} a6 {[%emt 0:01:38]} 9. Qd2 {[%emt 0:01:33]} b5 {[%emt 0:00:41]} 10. Bd3 {[%emt 0:00:29]} Bb7 {[%emt 0:00:25]} 11. O-O-O {[%emt 0:02:20]} Nbd7 {[%emt 0:07:08]} 12. Rhg1 {[%emt 0:05:25]} Qc8 {[%emt 0:02:46]} 13. Ne5 {[%emt 0:18:21]} c5 {[%emt 0:01:06]} 14. f4 $17 {[%emt 0:00:34]} (14. Nxd7 $142 Nxd7 15. Be4) 14... c4 {[%emt 0:07:56]} 15. Be2 {[%emt 0:01:51]} Nb6 {[%emt 0:00:27]} 16. Bf3 {[%emt 0:03:18]} b4 {[%emt 0:04:05]} 17. Nb1 {[%emt 0:07:44]} Bxf3 {[%emt 0:11:01]} 18. Nxf3 {[%emt 0:02:19]} Nbd5 {[%emt 0:02:07]} 19. Qe1 {[%emt 0:08:37]} c3 {[%emt 0:09:14]} 20. Ne5 {[%emt 0:08:19]} cxb2+ {[%emt 0:03:35]} 21. Kxb2 {[%emt 0:00:31]} Qc7 {[%emt 0:09:19]} 22. Rd3 {[%emt 0:05:31]} Rfc8 {[%emt 0:00:42]} 23. Qc1 {[%emt 0:05:23]} Ne4 {[%emt 0:03:38]} 24. Nd2 {[%emt 0:02:24]} Nec3 {[%emt 0:02:00]} 25. Rf1 {[%emt 0:00:15]} Qa5 {[%emt 0:01:54]} 26. a4 {[%emt 0:01:25]} Nxa4+ {[%emt 0:00:35]} 27. Kb3 {[%emt 0:00:42]} Rc3+ {[%emt 0:00:43]} 28. Rxc3 {[%emt 0:00:15]} bxc3 {[%emt 0:00:21]} 29. Ndc4 {[%emt 0:08:11]} Qb4+ {[%emt 0:03:10]} 30. Ka2 {[%emt 0:00:22]} Nb2 {[%emt 0:04:38]} 31. Nxb2 {[%emt 0:00:48]} cxb2 {[%emt 0:03:03]} 32. Qxb2 {[%emt 0:05:06]} Nc3+ {[%emt 0:01:54]} 0-1

[Event "LEM Sachsen-Anhalt Masters 2024"]
[Site "Merseburg"]
[Date "2024.02.10"]
[Round "5.3"]
[White "Herter, Arne"]
[Black "Haubold, Christian"]
[Result "1/2-1/2"]
[ECO "C90"]
[WhiteElo "2028"]
[BlackElo "1990"]
[Annotator "NA RC"]
[PlyCount "71"]
[EventDate "2024.02.01"]
[EventType "swiss"]
[EventCountry "GER"]
[SourceTitle "playchess.com"]
[Source "ChessBase"]
[SourceQuality "1"]
[TimeControl "40/5400+30:1800+30"]

1. e4 {[%emt 0:00:04]} e5 {[%emt 0:00:08]} 2. Nf3 {[%emt 0:00:04]} Nc6 {[%emt 0:00:07]} 3. Bb5 {[%emt 0:00:07]} a6 {[%emt 0:00:07]} 4. Ba4 {[%emt 0:00:06]} Nf6 {[%emt 0:00:08]} 5. O-O {[%emt 0:00:07]} Be7 {[%emt 0:00:10]} 6. d3 {[%emt 0:00:25]} b5 {[%emt 0:00:47]} 7. Bb3 {[%emt 0:00:06]} d6 {[%emt 0:00:59]} 8. c3 {[%emt 0:01:03]} Na5 {[%emt 0:01:34]} 9. Bc2 {[%emt 0:00:09]} c5 {[%emt 0:00:40]} 10. Re1 {[%emt 0:01:14]} O-O {[%emt 0:01:13]} 11. Nbd2 {[%emt 0:00:35]} Re8 {[%emt 0:01:01]} 12. Nf1 {[%emt 0:00:21]} Bf8 {[%emt 0:02:44]} 13. Ng3 {[%emt 0:02:01]} g6 {[%emt 0:00:40]} 14. h3 {[%emt 0:01:30]} Bg7 {[%emt 0:01:04]} 15. d4 {[%emt 0:04:55]} (15. Bg5 $11) 15... Qc7 {[%emt 0:00:54]} (15... cxd4 $15 16. cxd4 exd4) 16. d5 {[%emt 0:04:54]} c4 {[%emt 0:03:30]} (16... Bd7 $142) 17. Be3 $11 {[%emt 0:08:44]} (17. b4 $16) 17... h6 {[%emt 0:07:48]} 18. Qd2 {[%emt 0:05:55]} Kh7 {[%emt 0:00:38]} 19. Nh2 {[%emt 0:10:45]} Nd7 {[%emt 0:10:04]} 20. h4 {[%emt 0:07:04]} Qd8 {[%emt 0:06:38]} 21. h5 {[%emt 0:01:35]} Qh4 {[%emt 0:01:36]} 22. Nf3 {[%emt 0:05:01]} Qe7 {[%emt 0:02:50]} 23. Nh2 {[%emt 0:02:08]} Qh4 {[%emt 0:04:23]} 24. Bd1 {[%emt 0:05:08]} Nc5 {[%emt 0:18:35]} 25. Bxc5 {[%emt 0:05:47]} dxc5 {[%emt 0:00:02]} 26. Qe3 {[%emt 0:01:46]} Nb7 {[%emt 0:01:13]} 27. Be2 {[%emt 0:05:20]} Bd7 {[%emt 0:01:38]} 28. Qd2 {[%emt 0:08:21]} Nd6 {[%emt 0:01:35]} 29. Bf3 {[%emt 0:01:05]} Rec8 {[%emt 0:04:59]} 30. Qe2 {[%emt 0:02:39]} Kg8 {[%emt 0:03:21]} 31. hxg6 {[%emt 0:00:54]} fxg6 {[%emt 0:01:21]} 32. Bg4 {[%emt 0:00:17]} Bxg4 {[%emt 0:00:58]} 33. Qxg4 {[%emt 0:01:03]} Qxg4 {[%emt 0:00:07]} 34. Nxg4 {[%emt 0:00:04]} h5 {[%emt 0:04:39]} 35. Ne3 {[%emt 0:03:03]} Bh6 {[%emt 0:02:31]} 36. f3 {[%emt 0:01:28]} 1/2-1/2

[Event "LEM Sachsen-Anhalt Masters 2024"]
[Site "Merseburg"]
[Date "2024.02.10"]
[Round "5.4"]
[White "Lippert, Daniel"]
[Black "Reipsch, Jens"]
[Result "1-0"]
[ECO "C68"]
[WhiteElo "2034"]
[BlackElo "2225"]
[Annotator "NA RC"]
[PlyCount "71"]
[EventDate "2024.02.01"]
[EventType "swiss"]
[EventCountry "GER"]
[SourceTitle "playchess.com"]
[Source "ChessBase"]
[SourceQuality "1"]
[TimeControl "40/5400+30:1800+30"]

1. e4 {[%emt 0:00:03]} e5 {[%emt 0:00:02]} 2. Nf3 {[%emt 0:00:15]} Nc6 {[%emt 0:00:02]} 3. Bb5 {[%emt 0:00:04]} a6 {[%emt 0:00:12]} 4. Bxc6 {[%emt 0:00:07]} dxc6 {[%emt 0:00:08]} 5. O-O {[%emt 0:00:04]} Bg4 {[%emt 0:01:15]} 6. h3 {[%emt 0:00:03]} Bxf3 {[%emt 0:08:01]} ({Black should try} 6... h5 $11) 7. Qxf3 {[%emt 0:00:57]} Qf6 {[%emt 0:01:03]} 8. Qxf6 {[%emt 0:00:04]} Nxf6 {[%emt 0:00:04]} 9. d3 {[%emt 0:00:17]} Bd6 {[%emt 0:04:31]} 10. a4 {[%emt 0:00:55]} c5 {[%emt 0:01:22]} 11. Nd2 {[%emt 0:01:48]} O-O {[%emt 0:03:55]} 12. a5 {[%emt 1:31:53]} b5 $14 {[%emt 0:02:47]} 13. axb6 {[%emt 0:00:00]} cxb6 {[%emt 0:03:35]} 14. Nc4 {[%emt 0:00:00]} Bc7 {[%emt 0:00:56]} 15. Bg5 {[%emt 0:00:00]} Nd7 {[%emt 0:03:11]} 16. Ne3 {[%emt 0:00:00]} Bd8 {[%emt 0:19:22]} 17. Bxd8 {[%emt 0:00:00]} Rfxd8 {[%emt 0:00:02]} 18. Nd5 {[%emt 0:00:00]} a5 {[%emt 0:02:44]} 19. g3 {[%emt 0:00:00]} Kf8 {[%emt 0:09:36]} 20. f4 {[%emt 0:00:00]} Rab8 {[%emt 0:01:04]} 21. Ne3 {[%emt 0:00:00]} exf4 {[%emt 0:06:07]} 22. gxf4 {[%emt 0:00:00]} Nf6 {[%emt 0:03:22]} 23. Kf2 {[%emt 0:00:00]} Rd4 {[%emt 0:04:18]} 24. b3 {[%emt 0:00:00]} g6 {[%emt 0:05:46]} 25. f5 {[%emt 0:00:00]} Nd7 {[%emt 0:05:36]} 26. Ke2 {[%emt 0:00:00]} Rd6 {[%emt 0:02:14]} 27. Ng4 {[%emt 0:00:00]} Re8 {[%emt 0:02:33]} 28. Ne3 {[%emt 0:00:00]} Ne5 {[%emt 0:01:35]} 29. Kd2 {[%emt 0:01:53]} Kg7 {[%emt 0:01:41]} 30. Kc3 {[%emt 0:00:56]} f6 {[%emt 0:00:54]} 31. Nd5 {[%emt 0:03:25]} g5 {[%emt 0:05:01]} 32. Nc7 {[%emt 0:00:20]} Rh8 {[%emt 0:00:20]} 33. h4 {[%emt 0:01:03]} h6 {[%emt 0:00:46]} 34. hxg5 {[%emt 0:00:32]} hxg5 {[%emt 0:00:03]} 35. Rh1 {[%emt 0:00:10]} Rh4 {[%emt 0:00:58]} 36. Ne8+ {[%emt 0:00:07]} 1-0

[Event "LEM Sachsen-Anhalt Masters 2024"]
[Site "Merseburg"]
[Date "2024.02.10"]
[Round "5.5"]
[White "Noennig, Jakob"]
[Black "Haubold, Sebastian"]
[Result "1/2-1/2"]
[ECO "C58"]
[WhiteElo "1789"]
[BlackElo "2055"]
[Annotator "NA RC"]
[PlyCount "78"]
[EventDate "2024.02.01"]
[EventType "swiss"]
[EventCountry "GER"]
[SourceTitle "playchess.com"]
[Source "ChessBase"]
[SourceQuality "1"]
[TimeControl "40/5400+30:1800+30"]

1. e4 {[%emt 0:00:02]} e5 {[%emt 0:00:39]} 2. Nf3 {[%emt 0:00:08]} Nc6 {[%emt 0:00:07]} 3. Bc4 {[%emt 0:00:27]} Nf6 {[%emt 0:00:11]} 4. Ng5 {[%emt 0:03:08]} d5 {[%emt 0:00:07]} 5. exd5 {[%emt 0:00:08]} Na5 {[%emt 0:00:04]} 6. Bb5+ {[%emt 0:00:13]} c6 {[%emt 0:00:05]} 7. dxc6 {[%emt 0:00:11]} bxc6 {[%emt 0:00:05]} 8. Qf3 {[%emt 0:00:30]} cxb5 {[%emt 0:00:38]} 9. Qxa8 {[%emt 0:01:46]} Be7 {[%emt 0:00:02]} 10. O-O {[%emt 0:15:41]} O-O $1 {[%emt 0:00:21]} 11. Qf3 {[%emt 0:17:31]} Bb7 $11 {[%emt 0:01:45]} 12. Qe2 {[%emt 0:03:12]} h6 {[%emt 0:04:15]} 13. Nf3 {[%emt 0:02:55]} e4 {[%emt 0:00:17]} 14. Ne1 {[%emt 0:07:23]} Bd6 {[%emt 0:16:11]} 15. d3 {[%emt 0:27:05]} Re8 {[%emt 0:14:55]} 16. Be3 {[%emt 0:04:16]} Qe7 {[%emt 0:06:48]} 17. d4 {[%emt 0:04:22]} Bc7 {[%emt 0:16:00]} 18. c3 {[%emt 0:03:34]} Qd6 {[%emt 0:00:09]} 19. g3 {[%emt 0:00:10]} Qe6 {[%emt 0:00:41]} 20. Kh1 {[%emt 0:04:05]} b4 {[%emt 0:08:48]} 21. cxb4 {[%emt 0:02:32]} Nc4 {[%emt 0:03:22]} 22. Nc3 {[%emt 0:00:45]} Qh3 {[%emt 0:10:58]} 23. Rg1 {[%emt 0:00:01]} Ng4 {[%emt 0:00:30]} 24. Rg2 {[%emt 0:00:04]} Nb6 {[%emt 0:05:02]} 25. Nc2 {[%emt 0:01:24]} Re6 {[%emt 0:01:34]} 26. Rd1 {[%emt 0:01:21]} Nd5 {[%emt 0:03:11]} 27. Nxd5 {[%emt 0:00:08]} Bxd5 {[%emt 0:00:05]} 28. Qb5 {[%emt 0:00:10]} Rd6 {[%emt 0:01:00]} 29. Qc5 {[%emt 0:00:15]} Rd7 {[%emt 0:01:30]} 30. Qb5 {[%emt 0:00:18]} Rd8 {[%emt 0:02:42]} 31. Qc5 {[%emt 0:00:34]} Bb6 {[%emt 0:00:27]} 32. Qe7 {[%emt 0:00:25]} f6 {[%emt 0:01:42]} 33. b3 {[%emt 0:01:05]} Rc8 {[%emt 0:00:26]} 34. Na3 {[%emt 0:00:14]} Qh5 {[%emt 0:01:05]} 35. Re1 {[%emt 0:00:56]} Re8 {[%emt 0:00:55]} 36. Qd6 {[%emt 0:00:38]} Rd8 {[%emt 0:00:27]} 37. Qe7 {[%emt 0:00:22]} Re8 {[%emt 0:00:38]} 38. Qd6 {[%emt 0:00:06]} Rd8 {[%emt 0:01:02]} 39. Qe7 {[%emt 0:01:21]} Re8 {[%emt 0:00:08]} 1/2-1/2

[Event "LEM Sachsen-Anhalt Masters 2024"]
[Site "Merseburg"]
[Date "2024.02.10"]
[Round "5.6"]
[White "Wenzel, Thomas"]
[Black "Daub, Sebastian"]
[Result "1/2-1/2"]
[ECO "B30"]
[WhiteElo "1747"]
[BlackElo "1967"]
[Annotator "NA RC"]
[PlyCount "57"]
[EventDate "2024.02.01"]
[EventType "swiss"]
[EventCountry "GER"]
[SourceTitle "playchess.com"]
[Source "ChessBase"]
[SourceQuality "1"]
[TimeControl "40/5400+30:1800+30"]

1. e4 {[%emt 0:00:06]} c5 {[%emt 0:00:07]} 2. Nf3 {[%emt 0:02:26]} g6 {[%emt 0:00:54]} 3. Bc4 {[%emt 0:01:57]} Bg7 {[%emt 0:00:48]} 4. O-O {[%emt 0:00:30]} Nc6 {[%emt 0:00:53]} 5. Nc3 {[%emt 0:02:19]} e6 {[%emt 0:00:55]} 6. a4 {[%emt 0:04:18]} Nge7 {[%emt 0:02:29]} 7. d3 {[%emt 0:03:07]} O-O {[%emt 0:03:36]} 8. Re1 {[%emt 0:02:17]} d5 {[%emt 0:03:54]} 9. Ba2 {[%emt 0:02:30]} a6 {[%emt 0:01:19]} 10. h4 {[%emt 0:04:20]} d4 {[%emt 0:04:27]} 11. Ne2 $11 {[%emt 0:00:21]} b5 {[%emt 0:02:58]} 12. Ng3 {[%emt 0:03:43]} h5 $2 {[%emt 0:06:19]} (12... h6 $1 $11) 13. Bf4 {[%emt 0:07:22]} e5 {[%emt 0:10:05]} 14. Bg5 {[%emt 0:04:04]} Kh7 {[%emt 0:04:20]} 15. Bxe7 {[%emt 0:16:44]} Qxe7 {[%emt 0:08:46]} 16. Ng5+ {[%emt 0:00:25]} Kh8 {[%emt 0:04:37]} 17. Bd5 {[%emt 0:10:28]} Bg4 {[%emt 0:08:23]} 18. f3 {[%emt 0:00:26]} Bd7 {[%emt 0:00:16]} 19. axb5 {[%emt 0:00:26]} axb5 {[%emt 0:00:10]} 20. Nxf7+ {[%emt 0:04:26]} Kh7 {[%emt 0:00:03]} 21. Rxa8 {[%emt 0:02:58]} Rxa8 {[%emt 0:00:06]} 22. Ng5+ {[%emt 0:00:25]} Kh8 {[%emt 0:01:58]} 23. Qd2 {[%emt 0:02:20]} Rf8 {[%emt 0:02:02]} 24. Ne2 {[%emt 0:01:23]} Bf6 {[%emt 0:03:07]} 25. Ra1 {[%emt 0:08:14]} Bxg5 {[%emt 0:00:48]} 26. hxg5 {[%emt 0:00:36]} Nb4 {[%emt 0:01:18]} 27. Bb3 {[%emt 0:02:34]} Be6 {[%emt 0:10:16]} 28. Bxe6 {[%emt 0:01:54]} Qxe6 {[%emt 0:01:17]} 29. Rf1 {[%emt 0:06:29]} 1/2-1/2

[Event "LEM Sachsen-Anhalt Masters 2024"]
[Site "Merseburg"]
[Date "2024.02.10"]
[Round "5.7"]
[White "Schulz, Maximilian"]
[Black "Schellmann, Frank"]
[Result "1/2-1/2"]
[ECO "D78"]
[WhiteElo "1896"]
[BlackElo "1923"]
[Annotator "NA RC"]
[PlyCount "32"]
[EventDate "2024.02.01"]
[EventType "swiss"]
[EventCountry "GER"]
[SourceTitle "playchess.com"]
[Source "ChessBase"]
[SourceQuality "1"]
[TimeControl "40/5400+30:1800+30"]

1. Nf3 {[%emt 1:31:00]} Nf6 {[%emt 1:31:00]} 2. g3 g6 3. Bg2 Bg7 {[%emt 0:01:00]} 4. O-O {[%emt 0:01:30]} O-O {[%emt 0:00:30]} 5. d4 {[%emt 0:00:30]} d5 {[%emt 0:00:30]} 6. c4 {[%emt 0:00:30]} c6 {[%emt 0:00:30]} 7. b3 {[%emt 0:00:30]} dxc4 {[%emt 0:00:30]} 8. bxc4 {[%emt 0:00:30]} c5 {[%emt 0:00:30]} 9. e3 {[%emt 0:00:30]} (9. dxc5 $2 {too greedy.} Nh5 $19) 9... Nc6 $11 {[%emt 0:00:30]} 10. Nc3 {[%emt 0:00:30]} Bf5 {[%emt 0:00:30]} 11. Bb2 {[%emt 0:00:30]} Ne4 {[%emt 0:00:30]} 12. Na4 {[%emt 0:00:30]} Na5 {[%emt 0:00:30]} 13. Rc1 {[%emt 0:00:30]} Rc8 {[%emt 0:00:30]} 14. d5 {[%emt 0:00:30]} Bxb2 {[%emt 0:00:30]} 15. Nxb2 {[%emt 0:00:30]} Qb6 {[%emt 0:00:30]} 16. Nd3 {[%emt 0:00:30]} Nd6 {[%emt 0:00:30]} 1/2-1/2

[Event "LEM Sachsen-Anhalt Masters 2024"]
[Site "Merseburg"]
[Date "2024.02.10"]
[Round "6.1"]
[White "Malek, Daniel"]
[Black "Herter, Arne"]
[Result "1/2-1/2"]
[ECO "E97"]
[WhiteElo "2307"]
[BlackElo "2028"]
[Annotator "RC"]
[PlyCount "102"]
[EventDate "2024.02.01"]
[EventType "swiss"]
[EventCountry "GER"]
[SourceTitle "playchess.com"]
[Source "ChessBase"]
[SourceQuality "1"]
[TimeControl "40/5400+30:1800+30"]

1. d4 {[%emt 0:00:04]} Nf6 {[%emt 0:00:06]} 2. c4 {[%emt 0:00:03]} g6 {[%emt 0:00:07]} 3. Nc3 {[%emt 0:00:04]} Bg7 {[%emt 0:00:06]} 4. e4 {[%emt 0:00:03]} d6 {[%emt 0:00:04]} 5. Be2 {[%emt 0:00:04]} O-O {[%emt 0:00:12]} 6. Nf3 {[%emt 0:00:03]} e5 {[%emt 0:00:05]} 7. O-O {[%emt 0:00:05]} Nc6 {[%emt 0:00:06]} 8. d5 {[%emt 0:00:05]} Ne7 {[%emt 0:00:04]} 9. b4 {[%emt 0:00:04]} a5 {[%emt 0:00:05]} 10. bxa5 {[%emt 0:00:05]} Rxa5 {[%emt 0:00:06]} 11. a4 {[%emt 0:00:36]} b6 {[%emt 0:00:15]} 12. Ba3 {[%emt 0:03:13]} Ne8 {[%emt 0:00:10]} 13. Re1 {[%emt 0:06:54]} f5 {[%emt 0:00:11]} 14. Nd2 {[%emt 0:00:06]} Nf6 {[%emt 0:00:51]} 15. Bf1 {[%emt 0:16:38]} fxe4 {[%emt 0:10:04]} 16. Ndxe4 {[%emt 0:00:33]} Nf5 {[%emt 0:00:20]} 17. Bb4 {[%emt 0:01:10]} Ra8 {[%emt 0:00:06]} 18. a5 {[%emt 0:00:55]} bxa5 {[%emt 0:00:13]} 19. Rxa5 {[%emt 0:01:58]} Rxa5 {[%emt 0:03:07]} 20. Bxa5 {[%emt 0:00:07]} Nd4 {[%emt 0:02:49]} 21. c5 {[%emt 0:07:06]} Nxe4 {[%emt 0:07:53]} 22. Nxe4 {[%emt 0:00:20]} Bf5 {[%emt 0:14:07]} 23. cxd6 {[%emt 0:10:17]} Bxe4 {[%emt 0:06:02]} 24. Rxe4 {[%emt 0:00:11]} Qf6 {[%emt 0:00:31]} 25. Qe1 {[%emt 0:06:38]} cxd6 {[%emt 0:02:37]} 26. Bc3 {[%emt 0:01:09]} Qg5 {[%emt 0:11:08]} 27. Bxd4 {[%emt 0:09:20]} exd4 {[%emt 0:00:21]} 28. Bc4 {[%emt 0:00:46]} Rc8 {[%emt 0:12:08]} 29. h4 {[%emt 0:11:11]} Qf5 {[%emt 0:31:06]} 30. Re8+ {[%emt 0:12:41]} Rxe8 {[%emt 0:00:00]} 31. Qxe8+ {[%emt 0:00:06]} Bf8 {[%emt 0:00:00]} 32. g3 {[%emt 0:02:06]} Qc2 {[%emt 0:00:00]} 33. Ba6 {[%emt 0:05:40]} d3 {[%emt 0:00:00]} 34. Bc8 {[%emt 0:00:59]} Qc7 {[%emt 0:00:00]} 35. Be6+ {[%emt 0:00:41]} Kg7 {[%emt 0:00:00]} 36. Qd7+ {[%emt 0:00:20]} Qxd7 {[%emt 0:00:00]} 37. Bxd7 {[%emt 0:00:05]} Be7 {[%emt 0:00:00]} 38. Kf1 {[%emt 0:00:48]} Bf6 {[%emt 0:00:00]} 39. Bb5 {[%emt 0:00:14]} d2 {[%emt 0:00:00]} 40. Ke2 {[%emt 0:00:05]} Bc3 {[%emt 0:00:00]} 41. Bd3 {[%emt 0:30:23]} h6 {[%emt 0:31:35]} 42. f4 {[%emt 0:01:53]} Kf6 {[%emt 0:01:39]} 43. g4 {[%emt 0:03:18]} g5 {[%emt 0:02:09]} 44. fxg5+ {[%emt 0:00:30]} hxg5 {[%emt 0:00:12]} 45. h5 {[%emt 0:00:07]} Kg7 {[%emt 0:00:00]} 46. Bc2 {[%emt 0:00:00]} Kh6 {[%emt 0:00:00]} 47. Kd3 {[%emt 0:00:00]} Ba5 {[%emt 0:00:00]} 48. Ke4 {[%emt 0:00:00]} Bc3 {[%emt 0:00:00]} 49. Kf5 {[%emt 0:00:00]} Be5 {[%emt 0:00:00]} 50. Ke6 {[%emt 0:00:00]} Bf4 {[%emt 0:00:00]} 51. Kf5 {[%emt 0:00:00]} Be5 {[%emt 0:00:00]} 1/2-1/2